Cogmind - Beta 17.1 *** ADVENTURER MODE // 2026.09.12 @ 01:37:15 Player: smokingfox Result: Self-destructed Performance ------------- Evolutions (2) 1000 Regions Visited (3) 600 Robots Destroyed (28) 140 Value Destroyed (607) 607 Prototype IDs (5) 100 Alien Tech Used (0) 0 Bonus (0) 0 TOTAL SCORE: 2447 Bonus ------- None Cogmind --------- Core Integrity 476/550 Matter 159/300 Energy 415/415 System Corruption 0% Temperature Warm (106) Movement Rolling (95) Ox1 Location -8/Materials Parts ------- > --- POWER (2) -------- Ion Engine Improved Ion Engine > --- PROPULSION (2) --- Wheel Wheel > --- UTILITY (5) ------ Large Storage Unit Signal Interpreter Improved Terrain Scanner > --- WEAPON (2) ------- Assault Rifle Grenade Launcher > --- INVENTORY (15) --- Ion Engine Wheel Wheel High-capacity Matter Pod (200) High-capacity Matter Pod (58) High-capacity Matter Pod (0) High-capacity Matter Pod (0) Weight Redist. System Improved Light Armor Plating Assault Rifle Heavy Battle Rifle Improved Light Cannon Improved Light Cannon Battle Cannon Grenade Launcher Peak State ------------ > --- POWER ------------ Ion Engine > --- PROPULSION ------- Compact Wheel Aerolev Unit > --- UTILITY ---------- Large Storage Unit Signal Interpreter Improved Terrain Scanner Scrap Shield > --- WEAPON ----------- Assault Rifle Battle Cannon > --- INVENTORY -------- Ion Engine Medium Matter Pod Large Matter Pod Compact Matter Pod Weight Redist. System Improved Light Armor Plating Assault Rifle Assault Rifle Heavy Battle Rifle Improved Light Cannon Improved Light Cannon Grenade Launcher Grenade Launcher [Rating: 20] Favorites ----------- Power Light Nuclear Core Engine Light Ion Engine Power Core Light Nuclear Core Propulsion Compact Wheel Wheel Compact Wheel Hover Unit Aerolev Unit Utility Signal Interpreter Device Improved Terrain Scanner Storage Large Storage Unit Processor Signal Interpreter Protection Scrap Shield Weapon Assault Rifle Energy Gun Medium Laser Ballistic Gun Assault Rifle Ballistic Cannon Battle Cannon Launcher Grenade Launcher Build | -11 -10 -10 -8 ------- Run | Yrd Mat Sub Mat Slots Evolved 4 | . . . 4 Power 1 | . . . 1 Propulsion . | . . . . Utility 3 | . . . 3 Weapon . | . . . . Parts Attached 22 | 7 5 4 6 Power 4 | 1 1 1 1 Engine 3 | 1 . 1 1 Core 1 | . 1 . . Reactor . | . . . . Propulsion 6 | 2 . 1 3 Treads . | . . . . Leg . | . . . . Wheel 5 | 2 . 1 2 Hover 1 | . . . 1 Flight . | . . . . Utility 6 | 2 3 . 1 Device 1 | 1 . . . Storage 3 | 1 2 . . Processor 1 | . 1 . . Hackware . | . . . . Protection 1 | . . . 1 Artifact . | . . . . Weapon 6 | 2 1 2 1 Energy Gun 1 | 1 . . . Energy Cannon . | . . . . Ballistic Gun 2 | 1 1 . . Ballistic Cannon 1 | . . 1 . Launcher 2 | . . 1 1 Special Weapon . | . . . . Impact Weapon . | . . . . Slashing Weapon . | . . . . Piercing Weapon . | . . . . Special Melee Weapon . | . . . . Unidentified Prototypes 1 | . . . 1 Parts Lost 4 | . . 3 1 Power 1 | . . 1 . Propulsion 2 | . . 2 . Utility 1 | . . . 1 Weapon . | . . . . Highest Loss Streak 3 | . . 3 1 To Critical Strikes . | . . . . Average Backups 10 | 4 8 12 13 Power 1 | 1 1 1 1 Propulsion 1 | 2 1 . 1 Utility 4 | . 2 4 5 Weapon 3 | 1 2 4 6 Tool/Special . | . . . . Unused Backups 24 | . 7 . 17 Power 3 | . 2 . 1 Propulsion 4 | . 2 . 2 Utility 12 | . 2 . 10 Weapon 5 | . 1 . 4 Tool/Special . | . . . . Average Slot Usage (%) 96 | . 100 97 76 Engine 4 | . 5 2 11 Core 9 | . 8 11 . Wheel 25 | . 28 25 13 Device 3 | . 7 . 8 Storage 13 | . 14 14 9 Processor 10 | . 6 14 9 Ballistic Gun 19 | . 26 16 9 Ballistic Cannon 6 | . . 10 8 Peak Build Rating 20 | 9 11 12 20 Average Rating 10 | 6 9 10 16 On Entrance 6 | . 9 10 8 Avg Prop Armor Cover (%) . | . . . . Naked Turns . | . . . . Heaviest Build 56 | 13 29 31 56 Greatest Support 32 | 32 32 32 26 Greatest Overweight (x) 3 | . . 1 3 Average Overweight (x) . | . . . 2 Largest Inventory Capacity 15 | 8 15 15 15 Average Capacity 12 | 7 9 15 15 Most Carried 15 | 6 10 14 15 Average Carried 11 | 4 8 13 13 Final Capacity 15 | 8 15 15 15 Final Carried 15 | 6 10 12 15 Class Distribution -------------------- 100% | Mutant Dominant Class ---------------- Mutant | -10/Materials Mutant | -10/Subcaves Mutant | -8/Materials Resources | -11 -10 -10 -8 ----------- Run | Yrd Mat Sub Mat Matter Collected 1660 | 359 581 316 404 Remotely . | . . . . Salvage Created 880 | 213 342 198 127 Parts 65 | 17 24 15 9 Haulers Intercepted 2 | . 2 . . Recyclers Shooed . | . . . . Parts Field Recycled . | . . . . Retrieved Matter . | . . . . Parts Self-Destructed 11 | . . 11 . Prevented . | . . . . Parts Restored . | . . . . Kills | -11 -10 -10 -8 ------- Run | Yrd Mat Sub Mat Combat Hostiles Destroyed 17 | . 7 7 3 Guns 13 | . 7 5 1 Cannons 3 | . . 2 1 AOE 1 | . . . 1 Classes Destroyed 9 | 3 4 2 . Worker 2 | 2 . . . Tunneler 4 | 4 . . . Hauler 2 | . 2 . . Recycler 1 | 1 . . . Watcher 2 | . 1 . 1 Swarmer 6 | . 3 3 . Grunt 6 | . 4 . 2 Sentry 2 | . . 1 1 Subdweller 3 | . . 3 . Best Kill Streak 4 | 4 4 4 3 Combat Bots Only 4 | . 3 4 2 Max Kills in Single Turn 2 | 1 2 1 1 Gunslinging 1 | . 1 . . Exploded 1 | . . . 1 Melee . | . . . . Uniques/NPCs Destroyed . | . . . . Combat | -11 -10 -10 -8 -------- Run | Yrd Mat Sub Mat Hostile Shots Fired 80 | . 27 24 29 Missed 17 | . 8 6 3 Hits 63 | . 19 18 26 Projectile 63 | . 19 18 26 Critical Strikes 1 | . . 1 . Damage Taken 914 | . 162 299 453 Core 130 | . 18 38 74 Absorbed by Shields . | . . . . Ignored by Resistances 246 | . 49 73 124 Core Remaining (%) 88 | 100 . 77 . Volleys Fired 85 | 13 26 32 14 Largest 2 | 2 2 2 2 Hottest 70 | 70 40 63 53 Shots Fired 169 | 26 52 63 28 Gun 127 | 26 52 35 14 Cannon 33 | . . 25 8 Launcher 9 | . . 3 6 Special . | . . . . Kinetic 147 | 13 52 60 22 Thermal 13 | 13 . . . Explosive 9 | . . 3 6 Electromagnetic . | . . . . Robot Hit Streak 33 | 10 14 13 33 Robot Miss Streak 2 | 2 1 2 . Penetration Max . | . . . . Secondary Targets 1 | . 1 . . Max Gunslinging Chain 1 | . 1 . . Shots Hit Robots 110 | 20 42 24 24 Core Hits 47 | 8 16 11 12 Critical Kills 1 | 1 . . . Critical Parts Destroyed . | . . . . Critical Strikes 2 | 1 . . 1 Destroy 1 | 1 . . . Blast 1 | . . . 1 Melee Attacks . | . . . . Impact . | . . . . Slashing . | . . . . Piercing . | . . . . Sneak Attacks . | . . . . Combat Hostiles . | . . . . Follow-up Attacks . | . . . . Damage Inflicted 2020 | 250 533 497 740 Guns 1112 | 250 533 162 167 Cannons 288 | . . 142 146 Explosions 620 | . . 193 427 Melee . | . . . . Ramming . | . . . . Kinetic 1263 | 113 533 304 313 Thermal 137 | 137 . . . Explosive 620 | . . 193 427 Electromagnetic . | . . . . Impact . | . . . . Slashing . | . . . . Piercing . | . . . . Highest Corruption 1 | . 1 1 . Average Corruption 1 | . 1 1 . Corruption Purged . | . . . . Corruption Blocked . | . . . . Effects 11 | . 2 9 . Message Errors 3 | . 1 2 . Matter Fused 2 | . . 2 . Energy Discharges 3 | . . 3 . Data Loss (minor) 2 | . 1 1 . Data Loss (major) 1 | . . 1 . Overload Shots . | . . . . Overflow Damage 5 | . . . 5 Projectiles 3 | . . . 3 Explosions 2 | . . . 2 Melee . | . . . . Knockbacks 3 | . . 2 1 Impact . | . . . . Kinetic 3 | . . 2 1 Secondary . | . . . . Self-Inflicted Damage 115 | . . . 115 Shots 5 | . . . 5 Rammed . | . . . . Targets Rammed . | . . . . Kicked . | . . . . Crushed . | . . . . Highest Temperature 106 | 27 15 2 106 Average Temperature 27 | 11 4 2 64 Received Heat Transfer 372 | . 84 63 225 Siege Activations . | . . . . Martial Activations . | . . . . Shielding Activations . | . . . . Robots Disrupted . | . . . . Combat Hostiles . | . . . . Robots Corrupted . | . . . . Combat Hostiles . | . . . . Parts Fried . | . . . . Impact Corruptions . | . . . . Robots Melted . | . . . . Combat Hostiles . | . . . . Parts Melted 1 | 1 . . . Heat Transferred 407 | 407 . . . Parts Sabotaged . | . . . . Parts Stolen . | . . . . Parts Stripped . | . . . . Power Chain Reactions . | . . . . Alert | -11 -10 -10 -8 ------- Run | Yrd Mat Sub Mat Maximum Alert Level . | . . . . Low Security (%) 100 | 100 100 . 100 Level 1 . | . . . . Level 2 . | . . . . Level 3 . | . . . . Level 4 . | . . . . Level 5 . | . . . . High Security . | . . . . Max Security . | . . . . Peak Influence 70 | 10 70 . 57 Initial 2 | . 2 . . Average 11 | 2 13 . 8 Influence Increases 446 | 35 219 105 87 Destroy 0b10 Robot/C 280 | . 140 80 60 Destroy 0b10 Robot/NC 55 | 35 15 . 5 Destroy Leader 58 | . 36 10 12 Successful Hack 13 | . 13 . . Destroy Structure 10 | . . . 10 Lose Combat Pursuer 30 | . 15 15 . Influence Decreases 389 | 30 224 105 30 Entered New Map 3 | . 3 . . Time Decay 376 | 30 221 105 20 Lost Part 10 | . . . 10 Squads Dispatched 3 | . . . 3 Investigation . | . . . . Extermination . | . . . . Reinforcement 1 | . . . 1 Assault . | . . . . Garrison 2 | . . . 2 Intercept . | . . . . Searches Triggered . | . . . . Construction Impeded . | . . . . Haulers Reinforced . | . . . . Active Scanning Responses . | . . . . Cargo Convoy Interrupts . | . . . . Stealth | -11 -10 -10 -8 --------- Run | Yrd Mat Sub Mat Distress Signals 2 | . . . 2 Communications Jammed . | . . . . Distress Signals . | . . . . Times Spotted 29 | . 12 11 6 Peak Tracking Total 4 | . 4 2 3 Tactical Retreats 2 | . 1 1 . Traps | -11 -10 -10 -8 ------- Run | Yrd Mat Sub Mat Traps Triggered 3 | . 2 1 . Indirectly . | . . . . Trap Hack Attempts . | . . . . Triggered . | . . . . Disarmed 5 | . 5 . . Reprogrammed . | . . . . Reused . | . . . . Traps Extracted . | . . . . Installed . | . . . . Triggered . | . . . . Machines | -11 -10 -10 -8 ---------- Run | Yrd Mat Sub Mat Machines Disabled . | . . . . Max in Single Turn . | . . . . Machines Repaired . | . . . . Machines Dismantled . | . . . . Machines Sabotaged . | . . . . Overloaded Fab Kills . | . . . . Hacking | -11 -10 -10 -8 --------- Run | Yrd Mat Sub Mat Machines Accessed 8 | . 7 . 1 Terminals 7 | . 6 . 1 Fabricators . | . . . . Repair Stations . | . . . . Recycling Units 1 | . 1 . . Scanalyzers . | . . . . Garrison Access . | . . . . Total Hacks 20 | . 18 . 2 Successful 11 | . 10 . 1 Failed 9 | . 8 . 1 Catastrophic . | . . . . Database Lockouts . | . . . . Manual . | . . . . Terminals 18 | . 16 . 2 Fabricators . | . . . . Repair Stations . | . . . . Recycling Units 2 | . 2 . . Scanalyzers . | . . . . Garrison Access . | . . . . Terminal Hacks 10 | . 9 . 1 Record 1 | . 1 . . Prototype ID Bank 2 | . 1 . 1 Emergency Access Points 1 | . 1 . . Locate Traps 2 | . 2 . . Disarm Traps 2 | . 2 . . Maintenance Status 1 | . 1 . . Transport Status 1 | . 1 . . Fabricator Hacks . | . . . . Repair Station Hacks . | . . . . Recycling Unit Hacks 1 | . 1 . . Retrieve Matter 1 | . 1 . . Scanalyzer . | . . . . Garrison Access Hacks . | . . . . Unauthorized Hacks . | . . . . Terminals . | . . . . Fabricators . | . . . . Repair Stations . | . . . . Recycling Units . | . . . . Scanalyzers . | . . . . Garrison Access . | . . . . Data Cores Recovered . | . . . . Used . | . . . . Hacking Detections 7 | . 6 . 1 Full Trace Events . | . . . . Feedback Events . | . . . . Feedback Blocked . | . . . . Robot Schematics Acquired . | . . . . Robots Built . | . . . . Authchips . | . . . . Time . | . . . . Total Robot Build Rating . | . . . . Part Schematics Acquired . | . . . . Parts Built . | . . . . Authchips . | . . . . Time . | . . . . Total Part Build Rating . | . . . . Part Studies Acquired . | . . . . Parts Repaired . | . . . . Time . | . . . . Parts Recycled . | . . . . Recycled Matter . | . . . . Retrieved Matter . | . . . . Retrieved Components . | . . . . Parts Scanalyzed . | . . . . Part Schematics Acquired . | . . . . Parts Damaged . | . . . . Bothacking | -11 -10 -10 -8 ------------ Run | Yrd Mat Sub Mat Used RIF Installer . | . . . . Robots Hacked . | . . . . Non-combat . | . . . . Combat . | . . . . Robot Hacks Applied . | . . . . Relay Couplers Released . | . . . . Fabnet Peak Effective % . | . . . . Robots Rewired . | . . . . Allies Hacked . | . . . . Hacks Repelled . | . . . . Allies | -11 -10 -10 -8 -------- Run | Yrd Mat Sub Mat Total Allies . | . . . . Largest Group . | . . . . Highest-Rated Group . | . . . . Highest-Rated Ally . | . . . . Total Orders . | . . . . Ally Attacks . | . . . . Total Damage . | . . . . Kills . | . . . . Allies Corrupted . | . . . . Allies Melted . | . . . . Intel | -11 -10 -10 -8 ------- Run | Yrd Mat Sub Mat Active Infowar (turns) 701 | 60 457 . 184 Terrain 701 | 60 457 . 184 Robot Analysis Total . | . . . . Derelict Logs Recovered . | . . . . Drone Launches . | . . . . Drone Recoveries . | . . . . Exploration | -11 -10 -10 -8 ------------- Run | Yrd Mat Sub Mat Turns Passed 2511 | 138 890 1284 199 Spaces Moved 2070 | 79 763 1131 97 Core 12 | 12 . . . Treads . | . . . . Legs . | . . . . Wheels 2058 | 67 763 1131 97 Hover . | . . . . Flight . | . . . . Fastest Speed 50 | 50 100 100 105 Average Speed 102 | 92 100 102 126 Slowest Speed 145 | 100 100 115 145 Overloaded Moves . | . . . . Propulsion Burnouts . | . . . . Robots Hopped . | . . . . Potential Cave-ins . | . . . . Cave-ins Triggered . | . . . . Exploration Rate (%) 44 | 4 97 67 10 Regions Visited 3 Branch Regions 1 Pre-discovered Areas . | . . . . Known Exits Taken 2 | . 1 1 . Unknown Exits Taken 1 | 1 . . . Scrap Searched 8 | . . 8 . Spaces Dug . | . . . . Terrain Destroyed 23 | . . 8 15 Melee . | . . . . Projectile . | . . . . AOE 23 | . . 8 15 Terrain Rammed . | . . . . Walls Destroyed . | . . . . Machines Disabled . | . . . . Actions | -11 -10 -10 -8 --------- Run | Yrd Mat Sub Mat Total 2306 | 117 848 1191 150 Wait 65 | 7 25 20 13 Move 2067 | 78 762 1130 97 Hop . | . . . . Pick Up 42 | 12 15 3 12 Fast Attach 4 | 1 1 . 2 Attach 11 | 6 . 2 3 Detach . | . . . . Swap 10 | . 4 4 2 Drop 22 | . 15 . 7 Fire 85 | 13 26 32 14 Melee . | . . . . Ram . | . . . . Kick . | . . . . Crush . | . . . . Escape Stasis . | . . . . Rewire . | . . . . Trap . | . . . . Miscellaneous . | . . . . Route ------- -11/Scrapyard -10/Materials (discovered 6 exits: *Mat x3 / *Min x2 / *Sub) -10/Subcaves (discovered 2 exits: *Mat x2) -8/Materials History --------- Turn | Location | Event 11 | -11/Scrapyard | Discovered new exit (range 16) 139 | -11/Scrapyard | Entered Materials 161 | -10/Materials | Discovered new exit (range 7) 201 | -10/Materials | Discovered new exit (range 15) 314 | -10/Materials | Build established: Mutant 457 | -10/Materials | Discovered new exit (range 5) 468 | -10/Materials | Discovered new exit (range 16) 628 | -10/Materials | Discovered new exit (range 13) 678 | -10/Materials | Identified exit to Materials 783 | -10/Materials | Identified exit to Mines 1018 | -10/Materials | Discovered new exit (range 8) 1024 | -10/Materials | Identified exit to Subcaves 1029 | -10/Materials | Entered Subcaves 1409 | -10/Subcaves | Disturbed a concealed Subdweller 1439 | -10/Subcaves | Shifting Twisted Machinery released Mak. Laser 1440 | -10/Subcaves | Shifting Twisted Machinery released Sub. Machine Gun 1467 | -10/Subcaves | A swath of the cavern ceiling suddenly collapsed 1938 | -10/Subcaves | Visited 4L-MR0's lab 2144 | -10/Subcaves | Lost 3 parts (1p2n) 2155 | -10/Subcaves | Discovered new exit (range 16) 2206 | -10/Subcaves | Shifting Twisted Machinery released Battle Rifle 2210 | -10/Subcaves | Shifting Twisted Machinery released Sub. Monowheel 2300 | -10/Subcaves | Discovered new exit (range 12) 2311 | -10/Subcaves | Identified exit to Materials 2313 | -10/Subcaves | Entered Materials 2313 | -8/Materials | Evolved 4 slots: Power x1, Utility x3 2356 | -8/Materials | Garrison activated, responded to threat 2512 | -8/Materials | Self-destructed Last Messages --------------- Extracted 150 matter. Dropped Assault Rifle. Acquired Hcp. Matter Pod. Y-45 Defender destroyed. Acquired 52 matter. Acquired Imp. Ion Engine. ALERT: Hostiles spotted, dispatching reinforcements to Terminal M009. W-25 Informer distress signal alerts nearby ally. W-25 Informer suffers critical hit (Blast). Destroyed Imp. Hover Unit. W-25 Informer destroyed. G-47 Trooper knocked back. G-47 Trooper destroyed. Scrap Shield destroyed. G-47 Trooper destroyed. Destroyed Tractor Beam. Destroyed Lgt. Angular Momentum Engine. U-05 Engineer lays Concrete. Map ----- +----------------------------------------------------+ | ??????????????????????????????????????????? | | ??????????????????????????????????????????? | | ??????????????????????????????????????????? | | ??????????????????????????????????????????? | | ??????????????????????????????????????????? | | ??????????????????????????????????????????? | | ??????????????????????????????????????????? | | ??????????????????????????????????????????? | | ??????????????????????????????????????????? | | ??????????????????????????????????????????? | | ??????????????????????????????????????????? | | ????????????#???????????#?????????????????? | | ??????????????????????????????????????????? | | ??????????????? ??????????????????????????? | | ????????????????????????#?????????????????? | | ??????????????????????? #?????????????????? | | ?????????????????????? #?????????????????? | | ??????????????????#??? #?????????????????? | | ?????????????????????? #??#??????????????? | | ????????#???????????? ##????????????????? | | ???##??????????#?????w #??????##?????????? | | ?### ####???????#### #?????????????????? | | ? !#??????## # u #??????#??????????? | | ? " #?#????# #???#?????????????? | | # """ ! ######### #?????????????????? | | # """ + @g #?????????????????? | | # """ # #???#?????????????? | | # "" ! #=[ = #?????????????????? | | # """ # ! #????????????????? | | # "" +=! #????????????????? | | # """ # % #????????????????? | | # " = # #+####### ###??????????????? | | #! # # ## #??#?????????????? | | ######### # ## ###???????????#????? | | # [ !=# # ! ## ###########????????? | | # ! !# #? ## ## ! ##???????? | | # ! # #? ? ## ## = #????????? | | # # ######+## # #????????? | | # = # # #????????? | | # + T + ! ! #?? ?????? | | # # # #????????? | | # ########+## # ! #????????? | | # #??# ## ## #????????? | | # #??# ## ## #????????? | | # #??# ## ###########????????? | | #########??# """" ## #??????????????????? | | ???????????# """" ## #??????????????????? | | ???????????# """" ######???????????#??????? | | ???????????########???????????????????????? | | ????????????????#?????????????????????????? | +----------------------------------------------------+ Best States ------------- Heat Dissipation 31 Energy Generation 17 Energy Capacity 415 Matter Stores 300 Matter Capacity 300 Sight Range 16 Terrain Scan Range 16 Terrain Scan Density 10 Armor Coverage 800 Resistance: KI 20 Resistance: TH 20 Resistance: EX 20 Resistance: EM 20 Resistance: I 20 Resistance: S 20 Resistance: P 20 Evasion (%) 50 Offensive Hacking 10 Item Schematics ----------------- None Robot Schematics ------------------ None Fabricated ------------ Nothing Repaired ---------- Nothing Studied --------- None Alien Tech Used ----------------- None Achievements -------------- None Challenges ------------ None Game ------ Seed ExpertCombatManipulator Manual? 0 Play Time 00:22:16 Cumulative 55.4 hours Start 2026.09.12 @ 01:17:27 End 2026.09.12 @ 01:37:15 Sessions 1 Manual Loads 0 Difficulty Adventurer Special Mode None Game No. 61 Rogue 7 Adventurer 54 Explorer 0 Win Type - Total 1 Types 1/0/0/0/0/0/0/0/0/0 Lore% 52 Gallery% 45 Achievement% 31 Wizard Run 0 Options --------- Layout 1 ASCII 0 Keyboard 0 Movement Mouse Keybinds 0 Fullscreen 1 Font 48/Smallcaps Map View 50x35 Zoom Use 0% Tactical HUD 0 Map Filters NONE Filters NONE Steam 1 RUN: c4bd4010-8775-444f-86f9-f2fbf0ee6444